[Event "NJSK 2018 Jeugd C"]
[Site "Assen, Netherlands"]
[Date "2018.05.02"]
[Round "5.12"]
[White "Tiggelman, Vincent"]
[Black "Albers, Sasa"]
[Result "0-1"]
[TimeControl "40/90m+30sec/move"]
[WhiteElo "1394"]
[BlackElo "1336"]

1. e4 {[%clk 01:30:58]} {[%emt 00:00:01]} c6 {[%clk 01:30:57]} {[%emt
00:00:04]} 2. d4 {[%clk 01:31:22]} {[%emt 00:00:06]} d5 {[%clk 01:31:23]}
{[%emt 00:00:04]} 3. exd5 {[%clk 01:31:45]} {[%emt 00:00:07]} cxd5 {[%clk
01:31:47]} {[%emt 00:00:05]} 4. Bd3 {[%clk 01:32:08]} {[%emt 00:00:08]} Nc6
{[%clk 01:32:08]} {[%emt 00:00:09]} 5. c3 {[%clk 01:32:29]} {[%emt 00:00:09]}
Nf6 {[%clk 01:32:18]} {[%emt 00:00:19]} 6. h3 {[%clk 01:32:47]} {[%emt
00:00:12]} e6 {[%clk 01:32:26]} {[%emt 00:00:23]} 7. Bf4 {[%clk 01:33:03]}
{[%emt 00:00:13]} Bd6 {[%clk 01:32:45]} {[%emt 00:00:12]} 8. Bxd6 {[%clk
01:33:16]} {[%emt 00:00:16]} Qxd6 {[%clk 01:33:09]} {[%emt 00:00:06]} 9. Nf3
{[%clk 01:32:50]} {[%emt 00:00:56]} Bd7 {[%clk 01:33:06]} {[%emt 00:00:33]} 10.
Nbd2 {[%clk 01:32:02]} {[%emt 00:01:18]} O-O {[%clk 01:32:52]} {[%emt
00:00:45]} 11. O-O {[%clk 01:32:06]} {[%emt 00:00:25]} Rac8 {[%clk 01:31:45]}
{[%emt 00:01:37]} 12. Re1 {[%clk 01:31:07]} {[%emt 00:01:29]} Qc7 {[%clk
01:30:29]} {[%emt 00:01:46]} 13. Ne5 {[%clk 01:13:29]} {[%emt 00:18:08]} Na5
{[%clk 01:24:51]} {[%emt 00:06:09]} 14. g4 {[%clk 01:07:51]} {[%emt 00:06:07]}
h6 {[%clk 01:20:00]} {[%emt 00:05:20]} 15. h4 {[%clk 01:05:13]} {[%emt
00:03:09]} g6 {[%clk 01:13:41]} {[%emt 00:06:49]} 16. Qf3 {[%clk 00:48:05]}
{[%emt 00:17:38]} Kg7 {[%clk 01:11:14]} {[%emt 00:02:57]} 17. Qf4 {[%clk
00:28:35]} {[%emt 00:20:00]} b5 {[%clk 01:05:04]} {[%emt 00:06:41]} 18. Re3
{[%clk 00:23:16]} {[%emt 00:05:48]} Nc4 {[%clk 01:04:59]} {[%emt 00:00:35]} 19.
Ndxc4 {[%clk 00:19:04]} {[%emt 00:04:42]} dxc4 {[%clk 01:04:42]} {[%emt
00:00:47]} 20. Be4 {[%clk 00:04:51]} {[%emt 00:14:43]} Nxe4 {[%clk 01:02:16]}
{[%emt 00:02:55]} 21. Qxe4 {[%clk 00:04:52]} {[%emt 00:00:30]} Bc6 {[%clk
00:59:43]} {[%emt 00:03:04]} 22. Nxc6 {[%clk 00:04:36]} {[%emt 00:00:46]} Qxc6
{[%clk 00:58:16]} {[%emt 00:01:56]} 23. Qxc6 {[%clk 00:04:59]} {[%emt
00:00:07]} Rxc6 {[%clk 00:58:34]} {[%emt 00:00:12]} 24. Re5 {[%clk 00:05:22]}
{[%emt 00:00:07]} Rb8 {[%clk 00:57:56]} {[%emt 00:01:08]} 25. Rae1 {[%clk
00:05:07]} {[%emt 00:00:44]} b4 {[%clk 00:55:23]} {[%emt 00:03:04]} 26. Ra5
{[%clk 00:03:30]} {[%emt 00:02:07]} bxc3 {[%clk 00:43:32]} {[%emt 00:12:21]} 27.
bxc3 {[%clk 00:03:50]} {[%emt 00:00:10]} Rc7 {[%clk 00:43:11]} {[%emt
00:00:51]} 28. Kg2 {[%clk 00:03:38]} {[%emt 00:00:41]} Rb2 {[%clk 00:42:16]}
{[%emt 00:01:26]} 29. Ra3 {[%clk 00:03:01]} {[%emt 00:01:08]} Rcb7 {[%clk
00:40:56]} {[%emt 00:01:49]} 30. Re5 {[%clk 00:01:26]} {[%emt 00:02:05]} Rc2
{[%clk 00:40:32]} {[%emt 00:00:55]} 31. Rea5 {[%clk 00:00:44]} {[%emt
00:01:11]} Rbb2 {[%clk 00:37:10]} {[%emt 00:03:52]} 32. Rxa7 {[%clk 00:00:51]}
{[%emt 00:00:16]} Rxf2+ {[%clk 00:35:51]} {[%emt 00:01:56]} 33. Kg3 {[%clk
00:01:11]} {[%emt 00:00:10]} Rg2+ {[%clk 00:36:16]} {[%emt 00:00:05]} 34. Kh3
{[%clk 00:00:53]} {[%emt 00:00:48]} Rh2 {[%clk 00:36:39]} {[%emt 00:00:06]} 35.
Kg3 {[%clk 00:01:18]} {[%emt 00:00:06]} Rbg2+ {[%clk 00:37:06]} {[%emt
00:00:02]} 36. Kf3 {[%clk 00:01:42]} {[%emt 00:00:07]} Rc2 {[%clk 00:37:34]}
{[%emt 00:00:02]} 37. g5 {[%clk 00:00:33]} {[%emt 00:01:38]} hxg5 {[%clk
00:35:49]} {[%emt 00:02:15]} 38. hxg5 {[%clk 00:00:53]} {[%emt 00:00:10]} Rxc3+
{[%clk 00:35:35]} {[%emt 00:00:45]} 39. Rxc3 {[%clk 00:01:03]} {[%emt
00:00:20]} Rh3+ {[%clk 00:35:59]} {[%emt 00:00:06]} 40. Ke2 {[%clk 00:00:46]}
{[%emt 00:00:46]} Rxc3 {[%clk 00:36:20]} {[%emt 00:00:10]} 41. a4 {[%clk
00:00:52]} {[%emt 00:00:25]} Rg3 {[%clk 00:35:43]} {[%emt 00:01:07]} 42. a5
{[%clk 00:01:06]} {[%emt 00:00:15]} Rxg5 {[%clk 00:35:06]} {[%emt 00:01:06]} 43.
a6 {[%clk 00:01:19]} {[%emt 00:00:18]} Ra5 {[%clk 00:33:50]} {[%emt 00:01:46]}
44. Kd2 {[%clk 00:00:38]} {[%emt 00:01:11]} Ra3 {[%clk 00:33:41]} {[%emt
00:00:39]} 45. Kc2 {[%clk 00:00:48]} {[%emt 00:00:20]} c3 {[%clk 00:34:04]}
{[%emt 00:00:08]} 46. Kd3 {[%clk 00:00:51]} {[%emt 00:00:26]} g5 {[%clk
00:33:22]} {[%emt 00:01:12]} 47. Rc7 {[%clk 00:00:33]} {[%emt 00:00:48]} Rxa6
{[%clk 00:33:26]} {[%emt 00:00:26]} 48. Rxc3 {[%clk 00:00:52]} {[%emt
00:00:10]} Ra1 {[%clk 00:32:10]} {[%emt 00:01:47]} 49. Ke4 {[%clk 00:00:36]}
{[%emt 00:00:46]} Re1+ {[%clk 00:32:07]} {[%emt 00:00:33]} 50. Kf3 {[%clk
00:00:46]} {[%emt 00:00:19]} f5 {[%clk 00:29:04]} {[%emt 00:03:34]} 0-1

[Event "NJSK 2018 Jeugd C"]
[Site "Assen, Netherlands"]
[Date "2018.05.02"]
[Round "6.1"]
[White "Elgersma, Onno"]
[Black "Kutchoukov, Daniel"]
[Result "1/2-1/2"]
[TimeControl "40/90m+30sec/move"]
[WhiteElo "2060"]
[BlackElo "1902"]

1. e4 {[%clk 01:30:56]} {[%emt 00:00:03]} c6 {[%clk 01:30:58]} {[%emt
00:00:02]} 2. d4 {[%clk 01:31:15]} {[%emt 00:00:11]} d5 {[%emt 00:00:08]} 3. e5
{[%clk 01:31:35]} {[%emt 00:00:07]} Bf5 {[%clk 01:31:50]} {[%emt 00:00:04]} 4.
Nf3 {[%clk 01:31:59]} {[%emt 00:00:05]} e6 {[%clk 01:32:16]} {[%emt 00:00:05]}
5. Be2 {[%clk 01:31:57]} {[%emt 00:00:32]} c5 {[%clk 01:32:42]} {[%emt
00:00:04]} 6. c4 {[%clk 01:28:36]} {[%emt 00:03:51]} dxc4 {[%clk 01:11:14]}
{[%emt 00:21:57]} 7. Bxc4 {[%clk 01:16:27]} {[%emt 00:12:39]} Nc6 {[%clk
01:10:31]} {[%emt 00:01:14]} 8. Be3 {[%clk 01:02:55]} {[%emt 00:14:02]} cxd4
{[%clk 01:08:23]} {[%emt 00:02:38]} 9. Bxd4 {[%clk 00:45:50]} {[%emt 00:17:34]}
Bg4 {[%clk 01:04:31]} {[%emt 00:04:23]} 10. Bb5 {[%clk 00:32:36]} {[%emt
00:13:44]} Nge7 {[%clk 01:04:28]} {[%emt 00:00:33]} 11. Bxc6+ {[%clk 00:29:29]}
{[%emt 00:03:37]} Nxc6 {[%clk 01:04:31]} {[%emt 00:00:27]} 12. Bc3 {[%clk
00:24:07]} {[%emt 00:05:52]} Qxd1+ {[%clk 01:01:05]} {[%emt 00:03:57]} 13. Kxd1
{[%clk 00:24:35]} {[%emt 00:00:02]} Bxf3+ {[%clk 01:00:03]} {[%emt 00:01:32]}
14. gxf3 {[%clk 00:25:03]} {[%emt 00:00:02]} O-O-O+ {[%clk 00:59:52]} {[%emt
00:00:41]} 15. Ke2 {[%clk 00:24:06]} {[%emt 00:01:27]} Rd5 {[%clk 00:22:20]}
{[%emt 00:38:02]} 16. f4 {[%clk 00:21:43]} {[%emt 00:02:52]} Be7 {[%clk
00:18:24]} {[%emt 00:04:27]} 17. Rg1 {[%clk 00:12:09]} {[%emt 00:10:03]} Rg8
{[%clk 00:17:52]} {[%emt 00:01:03]} 18. Nd2 {[%clk 00:11:49]} {[%emt 00:00:50]}
b5 {[%clk 00:15:46]} {[%emt 00:02:36]} 19. b3 {[%clk 00:11:47]} {[%emt
00:00:32]} g6 {[%clk 00:12:22]} {[%emt 00:03:53]} 20. Ne4 {[%clk 00:11:13]}
{[%emt 00:01:04]} Rgd8 {[%clk 00:12:22]} {[%emt 00:00:31]} 21. Rac1 {[%clk
00:09:39]} {[%emt 00:02:04]} Kb7 {[%clk 00:12:11]} {[%emt 00:00:41]} 22. Rc2
{[%clk 00:06:57]} {[%emt 00:03:11]} Rd4 {[%clk 00:10:28]} {[%emt 00:02:13]} 23.
f3 {[%clk 00:06:39]} {[%emt 00:00:49]} Rd3 {[%clk 00:10:23]} {[%emt 00:00:35]}
24. Rgc1 {[%clk 00:04:42]} {[%emt 00:02:27]} R3d7 {[%clk 00:09:50]} {[%emt
00:01:03]} 25. h3 {[%clk 00:04:21]} {[%emt 00:00:51]} h6 {[%clk 00:08:02]}
{[%emt 00:02:18]} 26. Rg1 {[%clk 00:03:08]} {[%emt 00:01:42]} Rc8 {[%clk
00:06:56]} {[%emt 00:01:36]} 27. Rgc1 {[%clk 00:02:32]} {[%emt 00:01:06]} a6
{[%clk 00:06:04]} {[%emt 00:01:22]} 28. Ke3 {[%clk 00:02:22]} {[%emt 00:00:40]}
Rcd8 {[%clk 00:06:10]} {[%emt 00:00:24]} 29. Re1 {[%clk 00:01:38]} {[%emt
00:01:14]} Rd5 {[%clk 00:05:34]} {[%emt 00:01:06]} 30. Rec1 {[%clk 00:01:35]}
{[%emt 00:00:33]} Rc8 {[%clk 00:02:36]} {[%emt 00:03:28]} 31. Bb2 {[%clk
00:01:16]} {[%emt 00:00:49]} Na7 {[%clk 00:02:01]} {[%emt 00:01:05]} 32. Rxc8
{[%clk 00:01:35]} {[%emt 00:00:11]} Nxc8 {[%clk 00:02:23]} {[%emt 00:00:07]} 33.
Bd4 {[%clk 00:01:42]} {[%emt 00:00:23]} Bd8 {[%clk 00:00:40]} {[%emt 00:02:13]}
34. Bc5 {[%clk 00:01:38]} {[%emt 00:00:34]} Rd7 {[%clk 00:00:35]} {[%emt
00:00:35]} 35. Bf8 {[%clk 00:01:53]} {[%emt 00:00:14]} Bb6+ {[%clk 00:00:48]}
{[%emt 00:00:18]} 36. Ke2 {[%clk 00:02:00]} {[%emt 00:00:23]} h5 {[%clk
00:00:56]} {[%emt 00:00:21]} 37. Bb4 {[%clk 00:00:57]} {[%emt 00:01:33]} Kb8
{[%clk 00:00:35]} {[%emt 00:00:52]} 38. Ba3 {[%clk 00:00:49]} {[%emt 00:00:39]}
Kb7 {[%clk 00:00:39]} {[%emt 00:00:25]} 39. Bf8 {[%clk 00:00:48]} {[%emt
00:00:30]} 1/2-1/2

[Event "NJSK 2018 Jeugd C"]
[Site "Assen, Netherlands"]
[Date "2018.05.02"]
[Round "6.2"]
[White "Van Foreest, Machteld"]
[Black "Boghossian, Wahe"]
[Result "1-0"]
[TimeControl "40/90m+30sec/move"]
[WhiteElo "2132"]
[BlackElo "1748"]

1. e4 {[%clk 01:30:58]} {[%emt 00:00:01]} c5 {[%clk 01:30:56]} {[%emt
00:00:05]} 2. Nf3 {[%clk 01:31:24]} {[%emt 00:00:03]} d6 {[%clk 01:31:22]}
{[%emt 00:00:04]} 3. d4 {[%clk 01:31:51]} {[%emt 00:00:03]} cxd4 {[%clk
01:31:49]} {[%emt 00:00:04]} 4. Nxd4 {[%clk 01:32:18]} {[%emt 00:00:03]} Nf6
{[%clk 01:32:07]} {[%emt 00:00:11]} 5. Nc3 {[%clk 01:32:45]} {[%emt 00:00:03]}
a6 {[%clk 01:32:22]} {[%emt 00:00:15]} 6. Bg5 {[%clk 01:33:11]} {[%emt
00:00:03]} Nbd7 {[%clk 01:32:43]} {[%emt 00:00:09]} 7. f4 {[%clk 01:33:39]}
{[%emt 00:00:03]} g6 {[%clk 01:32:47]} {[%emt 00:00:25]} 8. Qf3 {[%clk
01:25:13]} {[%emt 00:08:55]} Bg7 {[%clk 01:32:29]} {[%emt 00:00:50]} 9. O-O-O
{[%clk 01:25:04]} {[%emt 00:00:39]} O-O {[%clk 01:32:17]} {[%emt 00:00:42]} 10.
g4 {[%clk 01:23:08]} {[%emt 00:02:24]} Qb6 {[%clk 01:30:29]} {[%emt 00:02:18]}
11. h4 {[%clk 01:11:16]} {[%emt 00:12:23]} Nxg4 {[%clk 01:22:22]} {[%emt
00:08:37]} 12. Nd5 {[%clk 01:11:05]} {[%emt 00:00:41]} Qa5 {[%clk 01:18:59]}
{[%emt 00:03:53]} 13. Qxg4 {[%clk 01:03:14]} {[%emt 00:08:21]} Qxa2 {[%clk
01:18:45]} {[%emt 00:00:44]} 14. Bxe7 {[%clk 00:52:12]} {[%emt 00:11:31]} Qa1+
{[%clk 01:17:11]} {[%emt 00:02:05]} 15. Kd2 {[%clk 00:52:32]} {[%emt 00:00:10]}
Qxb2 {[%clk 01:17:08]} {[%emt 00:00:33]} 16. Nb3 {[%clk 00:48:18]} {[%emt
00:04:44]} Nc5 {[%clk 01:13:50]} {[%emt 00:03:48]} 17. Qf3 {[%clk 00:46:15]}
{[%emt 00:02:32]} Bg4 {[%clk 01:10:23]} {[%emt 00:03:57]} 18. Qxg4 {[%clk
00:46:00]} {[%emt 00:00:45]} Nxb3+ {[%clk 01:10:48]} {[%emt 00:00:06]} 19. Ke1
{[%clk 00:45:35]} {[%emt 00:00:55]} Nd4 {[%clk 00:57:42]} {[%emt 00:13:35]} 20.
Bxf8 {[%clk 00:36:21]} {[%emt 00:09:44]} Nxc2+ {[%clk 00:57:29]} {[%emt
00:00:44]} 21. Kf2 {[%clk 00:36:37]} {[%emt 00:00:14]} Bd4+ {[%clk 00:54:09]}
{[%emt 00:03:49]} 22. Kg3 {[%clk 00:35:51]} {[%emt 00:01:17]} Rxf8 {[%clk
00:50:43]} {[%emt 00:03:56]} 23. Bd3 {[%clk 00:34:26]} {[%emt 00:01:55]} Nb4
{[%clk 00:46:29]} {[%emt 00:04:44]} 24. Qe2 {[%clk 00:34:03]} {[%emt 00:00:53]}
Qa3 {[%clk 00:46:07]} {[%emt 00:00:50]} 25. Nxb4 {[%clk 00:33:19]} {[%emt
00:01:16]} Qxb4 {[%clk 00:46:17]} {[%emt 00:00:20]} 26. Rb1 {[%clk 00:33:44]}
{[%emt 00:00:05]} Qc5 {[%clk 00:46:26]} {[%emt 00:00:19]} 27. Rxb7 {[%clk
00:33:30]} {[%emt 00:00:45]} h6 {[%clk 00:46:14]} {[%emt 00:00:42]} 28. Bxa6
{[%clk 00:33:05]} {[%emt 00:00:55]} Ra8 {[%clk 00:46:02]} {[%emt 00:00:43]} 29.
Qc4 {[%clk 00:32:09]} {[%emt 00:01:27]} Qa3+ {[%clk 00:41:16]} {[%emt
00:05:15]} 30. Kg2 {[%clk 00:30:32]} {[%emt 00:02:07]} d5 {[%clk 00:41:10]}
{[%emt 00:00:36]} 31. Qxd5 {[%clk 00:29:48]} {[%emt 00:01:13]} Rf8 {[%clk
00:41:27]} {[%emt 00:00:13]} 32. Qxd4 {[%clk 00:29:20]} {[%emt 00:00:57]} Qxa6
{[%clk 00:41:48]} {[%emt 00:00:10]} 33. Rb2 {[%clk 00:29:22]} {[%emt 00:00:28]}
Qa5 {[%clk 00:41:52]} {[%emt 00:00:25]} 34. Rhb1 {[%clk 00:29:20]} {[%emt
00:00:33]} Qa6 {[%clk 00:41:57]} {[%emt 00:00:25]} 35. Kg1 {[%clk 00:29:02]}
{[%emt 00:00:48]} Kh7 {[%clk 00:41:14]} {[%emt 00:01:13]} 36. Rb8 {[%clk
00:29:14]} {[%emt 00:00:17]} Qa3 {[%clk 00:40:31]} {[%emt 00:01:12]} 37. Rxf8
{[%clk 00:29:12]} {[%emt 00:00:33]} Qxf8 {[%clk 00:40:45]} {[%emt 00:00:17]} 38.
Rb7 {[%clk 00:29:37]} {[%emt 00:00:05]} h5 {[%clk 00:40:39]} {[%emt 00:00:36]}
39. Qf6 {[%clk 00:29:53]} {[%emt 00:00:14]} Qc5+ {[%clk 00:40:56]} {[%emt
00:00:13]} 40. Kf1 {[%clk 00:29:15]} {[%emt 00:01:07]} Qc1+ {[%clk 00:39:58]}
{[%emt 00:01:28]} 41. Ke2 {[%clk 00:29:23]} {[%emt 00:00:21]} Qc2+ {[%clk
00:39:46]} {[%emt 00:00:43]} 42. Ke3 {[%clk 00:29:34]} {[%emt 00:00:19]} Qc1+
{[%clk 00:39:58]} {[%emt 00:00:19]} 43. Kd3 {[%clk 00:29:31]} {[%emt 00:00:32]}
Qd1+ {[%clk 00:34:13]} {[%emt 00:06:14]} 44. Kc4 {[%clk 00:28:15]} {[%emt
00:01:46]} Qc2+ {[%clk 00:33:55]} {[%emt 00:00:48]} 45. Kd5 {[%clk 00:27:51]}
{[%emt 00:00:54]} Qa2+ {[%clk 00:33:35]} {[%emt 00:00:48]} 46. Kc6 {[%clk
00:26:07]} {[%emt 00:02:16]} Qc2+ {[%clk 00:33:15]} {[%emt 00:00:50]} 47. Kd7
{[%clk 00:25:00]} {[%emt 00:01:37]} Qd3+ {[%clk 00:32:48]} {[%emt 00:00:56]} 48.
Ke8 {[%clk 00:25:08]} {[%emt 00:00:23]} Qxe4+ {[%clk 00:32:51]} {[%emt
00:00:26]} 49. Kf8 {[%clk 00:25:07]} {[%emt 00:00:32]} 1-0

[Event "NJSK 2018 Jeugd C"]
[Site "Assen, Netherlands"]
[Date "2018.05.02"]
[Round "6.3"]
[White "Pham, Khoi"]
[Black "Van der Hagen, Loek"]
[Result "1-0"]
[TimeControl "40/90m+30sec/move"]
[WhiteElo "1983"]
[BlackElo "1815"]

1. e4 {[%clk 01:30:50]} {[%emt 00:00:09]} c5 {[%clk 01:30:56]} {[%emt
00:00:05]} 2. Nf3 {[%clk 01:31:11]} {[%emt 00:00:09]} d6 {[%clk 01:31:19]}
{[%emt 00:00:07]} 3. d4 {[%clk 01:31:31]} {[%emt 00:00:10]} cxd4 {[%clk
01:31:45]} {[%emt 00:00:04]} 4. Nxd4 {[%clk 01:31:54]} {[%emt 00:00:06]} Nf6
{[%clk 01:32:08]} {[%emt 00:00:06]} 5. Nc3 {[%clk 01:32:19]} {[%emt 00:00:06]}
Nc6 {[%clk 01:32:34]} {[%emt 00:00:04]} 6. Bg5 {[%clk 01:32:27]} {[%emt
00:00:22]} e6 {[%clk 01:32:52]} {[%emt 00:00:12]} 7. Qd2 {[%clk 01:32:21]}
{[%emt 00:00:35]} Be7 {[%clk 01:33:16]} {[%emt 00:00:06]} 8. f3 {[%clk
01:31:17]} {[%emt 00:01:34]} O-O {[%clk 01:32:17]} {[%emt 00:01:29]} 9. O-O-O
{[%clk 01:31:38]} {[%emt 00:00:09]} Nxd4 {[%clk 01:29:49]} {[%emt 00:02:58]} 10.
Qxd4 {[%clk 01:31:20]} {[%emt 00:00:47]} Qa5 {[%clk 01:29:59]} {[%emt
00:00:20]} 11. Be3 {[%clk 01:29:46]} {[%emt 00:02:04]} Rd8 {[%clk 01:29:14]}
{[%emt 00:01:15]} 12. Bc4 {[%clk 01:18:12]} {[%emt 00:12:04]} Bd7 {[%clk
01:20:43]} {[%emt 00:09:01]} 13. Qd2 {[%clk 01:10:21]} {[%emt 00:08:21]} Rac8
{[%clk 01:19:00]} {[%emt 00:02:13]} 14. Bb3 {[%clk 01:09:42]} {[%emt 00:01:09]}
b5 {[%clk 01:15:51]} {[%emt 00:03:39]} 15. Qf2 {[%clk 01:01:45]} {[%emt
00:08:27]} b4 {[%clk 01:11:39]} {[%emt 00:04:43]} 16. Ne2 {[%clk 01:00:41]}
{[%emt 00:01:34]} Ba4 {[%clk 01:09:46]} {[%emt 00:02:23]} 17. Kb1 {[%clk
00:57:31]} {[%emt 00:03:40]} Bxb3 {[%clk 01:08:30]} {[%emt 00:01:47]} 18. cxb3
{[%clk 00:57:55]} {[%emt 00:00:06]} Rc6 {[%clk 01:07:44]} {[%emt 00:01:15]} 19.
Bd2 {[%clk 00:55:02]} {[%emt 00:03:24]} Ra6 {[%clk 01:03:25]} {[%emt 00:04:49]}
20. a4 {[%clk 00:54:58]} {[%emt 00:00:34]} Nd7 {[%clk 01:00:56]} {[%emt
00:02:58]} 21. Nd4 {[%clk 00:42:51]} {[%emt 00:12:38]} Nc5 {[%clk 00:58:20]}
{[%emt 00:03:06]} 22. Qe2 {[%clk 00:30:50]} {[%emt 00:12:30]} e5 {[%clk
00:41:32]} {[%emt 00:17:18]} 23. Nf5 {[%clk 00:24:59]} {[%emt 00:06:21]} Nxb3
{[%clk 00:39:49]} {[%emt 00:02:13]} 24. Nxe7+ {[%clk 00:19:04]} {[%emt
00:06:24]} Kf8 {[%clk 00:40:09]} {[%emt 00:00:10]} 25. Bxb4 {[%clk 00:17:02]}
{[%emt 00:02:33]} Qxa4 {[%clk 00:37:47]} {[%emt 00:02:52]} 26. Nd5 {[%clk
00:08:10]} {[%emt 00:09:22]} Qa2+ {[%clk 00:32:01]} {[%emt 00:06:15]} 27. Kc2
{[%clk 00:08:34]} {[%emt 00:00:05]} Nd4+ {[%clk 00:30:53]} {[%emt 00:01:38]} 28.
Rxd4 {[%clk 00:08:48]} {[%emt 00:00:16]} exd4 {[%clk 00:31:18]} {[%emt
00:00:05]} 29. Rd1 {[%clk 00:06:20]} {[%emt 00:02:58]} Rc6+ {[%clk 00:30:49]}
{[%emt 00:01:00]} 30. Kd2 {[%clk 00:06:45]} {[%emt 00:00:05]} Qxb2+ {[%clk
00:28:55]} {[%emt 00:02:23]} 31. Ke1 {[%clk 00:07:13]} {[%emt 00:00:02]} Rc2
{[%clk 00:26:48]} {[%emt 00:02:38]} 32. Rd2 {[%clk 00:07:14]} {[%emt 00:00:28]}
Rxd2 {[%clk 00:26:34]} {[%emt 00:00:43]} 33. Qxd2 {[%clk 00:07:27]} {[%emt
00:00:17]} Qa1+ {[%clk 00:26:43]} {[%emt 00:00:22]} 34. Kf2 {[%clk 00:07:37]}
{[%emt 00:00:19]} a5 {[%clk 00:25:07]} {[%emt 00:02:06]} 35. Qe1 {[%clk
00:01:19]} {[%emt 00:06:49]} Qa2+ {[%clk 00:25:08]} {[%emt 00:00:28]} 36. Qd2
{[%clk 00:01:41]} {[%emt 00:00:09]} Qa4 {[%clk 00:23:38]} {[%emt 00:01:59]} 37.
Bxa5 {[%clk 00:01:44]} {[%emt 00:00:28]} Rb8 {[%clk 00:21:10]} {[%emt
00:02:57]} 38. Bc7 {[%clk 00:01:34]} {[%emt 00:00:40]} Rb3 {[%clk 00:20:58]}
{[%emt 00:00:42]} 39. Bxd6+ {[%clk 00:01:44]} {[%emt 00:00:21]} Kg8 {[%clk
00:21:07]} {[%emt 00:00:20]} 40. Qg5 {[%clk 00:00:49]} {[%emt 00:01:24]} Rb2+
{[%clk 00:16:06]} {[%emt 00:05:32]} 41. Kg3 {[%clk 00:01:12]} {[%emt 00:00:07]}
Qa8 {[%clk 00:16:01]} {[%emt 00:00:35]} 42. Be5 {[%clk 00:01:14]} {[%emt
00:00:28]} Qf8 {[%clk 00:15:43]} {[%emt 00:00:48]} 43. Nf6+ {[%clk 00:01:29]}
{[%emt 00:00:15]} Kh8 {[%clk 00:16:02]} {[%emt 00:00:11]} 44. Nh5 {[%clk
00:01:55]} {[%emt 00:00:04]} f6 {[%clk 00:15:02]} {[%emt 00:01:30]} 45. Nxf6
{[%clk 00:02:05]} {[%emt 00:00:20]} h6 {[%clk 00:14:41]} {[%emt 00:00:51]} 46.
Qg6 {[%clk 00:02:19]} {[%emt 00:00:16]} 1-0